Cogmind - Beta 16 @@@ ROGUE MODE // 2025.11.19 @ 16:30:44 Player: AlcoholicAardvark Result: Destroyed by G-47 Trooper with Particle Gun Performance ------------- Evolutions (2) 1000 Regions Visited (3) 600 Robots Destroyed (34) 170 Value Destroyed (1142) 1142 Prototype IDs (0) 0 Alien Tech Used (0) 0 Bonus (0) 0 TOTAL SCORE: 2912 Bonus ------- None Cogmind --------- Core Integrity 0/550 Matter 201/300 Energy 100/100 System Corruption 7% Temperature Cool (9) Movement Core (50) Location -8/Materials Parts ------- > --- POWER (1) -------- (None) > --- PROPULSION (3) --- (None) > --- UTILITY (4) ------ (None) > --- WEAPON (3) ------- (None) > --- INVENTORY (5) ---- Light Nuclear Core Peak State ------------ > --- POWER ------------ Improved Ion Engine > --- PROPULSION ------- Aluminum Leg Aluminum Leg Carbon-fiber Leg > --- UTILITY ---------- Improved Sensor Array Weapon Shielding Hardened Medium Armor Plating System Shield > --- WEAPON ----------- EM Pulse Gun Flak Cannon Flak Cannon > --- INVENTORY -------- Light Nuclear Core Terrain Scanner Weapon Shielding Grenade Launcher Grenade Launcher [Rating: 24] Favorites ----------- Power Ion Engine Engine Ion Engine Power Core Light Nuclear Core Propulsion Aluminum Leg Leg Aluminum Leg Utility Terrain Scanner Device Terrain Scanner Hackware System Shield Protection Weapon Shielding Weapon Flak Cannon Energy Gun EM Pulse Gun Energy Cannon Beam Cannon Ballistic Gun Light Assault Rifle Ballistic Cannon Flak Cannon Launcher Grenade Launcher Build | -11 -10 -10 -8 ------- Run | Yrd Mat Sub Mat Slots Evolved 4 | . . . 4 Power . | . . . . Propulsion 1 | . . . 1 Utility 2 | . . . 2 Weapon 1 | . . . 1 Parts Attached 37 | 5 11 1 20 Power 9 | 1 3 . 5 Engine 6 | 1 3 . 2 Core 3 | . . . 3 Reactor . | . . . . Propulsion 7 | 2 3 . 2 Treads . | . . . . Leg 7 | 2 3 . 2 Wheel . | . . . . Hover . | . . . . Flight . | . . . . Utility 11 | . 2 1 8 Device 5 | . 2 . 3 Storage . | . . . . Processor . | . . . . Hackware 1 | . . . 1 Protection 5 | . . 1 4 Artifact . | . . . . Weapon 10 | 2 3 . 5 Energy Gun 2 | 1 . . 1 Energy Cannon 1 | . 1 . . Ballistic Gun 3 | 1 2 . . Ballistic Cannon 2 | . . . 2 Launcher 2 | . . . 2 Special Weapon . | . . . . Impact Weapon . | . . . . Slashing Weapon . | . . . . Piercing Weapon . | . . . . Special Melee Weapon . | . . . . Unidentified Prototypes . | . . . . Parts Lost 22 | . . 2 20 Power 4 | . . . 4 Propulsion 4 | . . . 4 Utility 6 | . . . 6 Weapon 8 | . . 2 6 Highest Loss Streak 13 | . . 1 13 To Critical Strikes . | . . . . Average Backups 3 | . 2 4 4 Power . | . . 1 1 Propulsion . | . . . . Utility . | . . 1 1 Weapon 1 | . 1 2 1 Tool/Special . | . . . . Unused Backups 1 | . . . 1 Power 1 | . . . 1 Propulsion . | . . . . Utility . | . . . . Weapon . | . . . . Tool/Special . | . . . . Average Slot Usage (%) 87 | . 93 99 76 Engine 9 | . 14 14 4 Core 1 | . . . 2 Leg 22 | . 28 28 15 Device 18 | . 22 21 14 Protection 7 | . . 6 14 Energy Gun 4 | . 1 2 7 Energy Cannon 6 | . 12 11 . Ballistic Gun 7 | . 14 13 . Ballistic Cannon 6 | . . . 14 Peak Build Rating 24 | 5 7 7 24 Average Rating 10 | 4 6 6 15 On Entrance 4 | . 5 7 6 Avg Prop Armor Cover (%) . | . . . . Naked Turns 12 | . . . 12 Heaviest Build 32 | 6 11 13 32 Greatest Support 35 | 20 20 20 35 Greatest Overweight (x) 3 | 1 . . 3 Average Overweight (x) . | . . . . Largest Inventory Capacity 5 | 5 5 5 5 Average Capacity 5 | 5 5 5 5 Most Carried 5 | . 5 5 5 Average Carried 3 | . 2 4 4 Final Capacity 5 | 5 5 5 5 Final Carried 5 | . 5 4 1 Class Distribution -------------------- 61% | Mutant 34% | Skirmisher 4% | Scavenger-Mutant Dominant Class ---------------- Mutant | -10/Materials Mutant | -10/Subcaves Skirmisher | -8/Materials Resources | -11 -10 -10 -8 ----------- Run | Yrd Mat Sub Mat Matter Collected 751 | 245 142 5 359 Remotely . | . . . . Salvage Created 1163 | . 307 166 690 Parts 60 | . 19 13 28 Haulers Intercepted 1 | . 1 . . Recyclers Shooed 5 | . 1 . 4 Parts Field Recycled . | . . . . Retrieved Matter . | . . . . Parts Self-Destructed 7 | . . 7 . Prevented . | . . . . Parts Restored . | . . . . Kills | -11 -10 -10 -8 ------- Run | Yrd Mat Sub Mat Combat Hostiles Destroyed 29 | . 8 4 17 Melee 1 | . . . 1 Guns 6 | . 2 3 1 Cannons 21 | . 6 1 14 AOE 1 | . . . 1 Classes Destroyed 11 | . 4 2 5 Worker 1 | . . . 1 Hauler 1 | . 1 . . Recycler 2 | . . . 2 Watcher 1 | . 1 . . Swarmer 5 | . 4 1 . Grunt 15 | . 4 . 11 Brawler 1 | . . . 1 Duelist 1 | . . . 1 Sentry 3 | . . 1 2 Hunter 2 | . . . 2 Subdweller 2 | . . 2 . Best Kill Streak 6 | . 2 2 6 Combat Bots Only 5 | . 2 2 5 Max Kills in Single Turn 3 | . 1 1 3 Gunslinging . | . . . . Exploded 1 | . . . 1 Melee 1 | . . . 1 Uniques/NPCs Destroyed . | . . . . Combat | -11 -10 -10 -8 -------- Run | Yrd Mat Sub Mat Hostile Shots Fired 292 | . 60 37 195 Missed 68 | . 15 9 44 Hits 224 | . 45 28 151 Projectile 224 | . 45 28 151 Critical Strikes 9 | . . 2 7 Actively Blocked 2 | . . . 2 Damage Taken 2907 | . 439 394 2074 Core 726 | . 114 58 554 Absorbed by Shields . | . . . . Redirected to Shielding 94 | . . . 94 Regen/Repaired (Parts) 68 | . . . 68 Core Remaining (%) 65 | 100 . 31 . Volleys Fired 93 | . 38 12 43 Largest 3 | . 2 2 3 Hottest 114 | . 80 80 114 Shots Fired 195 | . 76 24 95 Gun 82 | . 38 19 25 Cannon 109 | . 38 5 66 Launcher 4 | . . . 4 Special . | . . . . Kinetic 116 | . 38 12 66 Thermal 47 | . 38 5 4 Explosive 4 | . . . 4 Electromagnetic 28 | . . 7 21 Robot Hit Streak 12 | . 12 6 8 Robot Miss Streak 6 | . 6 2 5 Penetration Max . | . . . . Secondary Targets . | . . . . Shots Hit Robots 128 | . 38 16 74 Core Hits 123 | . 15 7 101 Critical Kills . | . . . . Critical Parts Destroyed . | . . . . Critical Strikes 1 | . . . 1 Corrupt 1 | . . . 1 Melee Attacks . | . . . . Impact . | . . . . Slashing . | . . . . Piercing . | . . . . Sneak Attacks . | . . . . Combat Hostiles . | . . . . Follow-up Attacks . | . . . . Damage Inflicted 2294 | . 528 175 1591 Guns 428 | . 137 122 169 Cannons 1518 | . 369 53 1096 Explosions 241 | . . . 241 Melee . | . . . . Ramming 107 | . 22 . 85 Kinetic 1308 | . 137 75 1096 Thermal 464 | . 369 53 42 Explosive 241 | . . . 241 Electromagnetic 174 | . . 47 127 Impact . | . . . . Slashing . | . . . . Piercing . | . . . . Highest Corruption 7 | . . . 7 Average Corruption 3 | . . . 3 Corruption Purged . | . . . . Corruption Blocked . | . . . . Overload Shots . | . . . . Overflow Damage . | . . . . Projectiles . | . . . . Explosions . | . . . . Melee . | . . . . Knockbacks 36 | . 1 . 35 Impact 1 | . 1 . . Kinetic 31 | . . . 31 Secondary 4 | . . . 4 Self-Inflicted Damage 38 | . . . 38 Shots 1 | . . . 1 Rammed 36 | . . . 36 Targets Rammed 41 | . 5 . 36 Kicked 5 | . 5 . . Crushed . | . . . . Highest Temperature 480 | . 322 6 480 Average Temperature 143 | . 74 4 191 Received Heat Transfer 1197 | . 150 30 1017 Effects 2 | . . . 2 Short Circuit 1 | . . . 1 Damage (minor) 1 | . . . 1 Siege Activations . | . . . . Martial Activations . | . . . . Shielding Activations . | . . . . Robots Disrupted . | . . . . Combat Hostiles . | . . . . Robots Corrupted . | . . . . Combat Hostiles . | . . . . Parts Fried . | . . . . Impact Corruptions . | . . . . Robots Melted . | . . . . Combat Hostiles . | . . . . Parts Melted 1 | . 1 . . Heat Transferred 999 | . 777 111 111 Parts Sabotaged . | . . . . Parts Stolen . | . . . . Parts Stripped . | . . . . Power Chain Reactions . | . . . . Alert | -11 -10 -10 -8 ------- Run | Yrd Mat Sub Mat Maximum Alert Level 1 | . . . 1 Low Security (%) 89 | 100 100 . 81 Level 1 10 | . . . 18 Level 2 . | . . . . Level 3 . | . . . . Level 4 . | . . . . Level 5 . | . . . . High Security . | . . . . Max Security . | . . . . Peak Influence 250 | . 129 . 250 Initial 10 | . . . 10 Average 61 | . 56 . 69 Influence Increases 862 | . 248 70 544 Destroy 0b10 Robot/C 540 | . 160 40 340 Destroy 0b10 Robot/NC 25 | . 10 . 15 Destroy Leader 114 | . 34 . 80 Successful Hack 40 | . 14 . 26 Destroy Structure 23 | . . . 23 Lose Combat Pursuer 120 | . 30 30 60 Influence Decreases 710 | . 184 114 412 Entered New Map 42 | . . 32 10 Time Decay 458 | . 184 72 202 Lost Part 210 | . . 10 200 Squads Dispatched 6 | . 2 . 4 Investigation . | . . . . Extermination . | . . . . Reinforcement 4 | . 2 . 2 Assault . | . . . . Garrison 2 | . . . 2 Intercept . | . . . . Searches Triggered . | . . . . Construction Impeded . | . . . . Haulers Reinforced . | . . . . Active Scanning Responses . | . . . . Cargo Convoy Interrupts . | . . . . Stealth | -11 -10 -10 -8 --------- Run | Yrd Mat Sub Mat Distress Signals 5 | . 1 . 4 Communications Jammed . | . . . . Distress Signals . | . . . . Times Spotted 54 | . 18 8 28 Peak Tracking Total 7 | . 5 5 7 Tactical Retreats 5 | . 1 1 3 ECM-based Alert Blocks 2 | . . . 2 Traps | -11 -10 -10 -8 ------- Run | Yrd Mat Sub Mat Traps Triggered . | . . . . Indirectly . | . . . . Trap Hack Attempts . | . . . . Triggered . | . . . . Disarmed . | . . . . Reprogrammed . | . . . . Reused . | . . . . Traps Extracted . | . . . . Installed . | . . . . Triggered . | . . . . Machines | -11 -10 -10 -8 ---------- Run | Yrd Mat Sub Mat Machines Disabled . | . . . . Max in Single Turn . | . . . . Machines Repaired . | . . . . Machines Dismantled . | . . . . Machines Sabotaged . | . . . . Overloaded Fab Kills . | . . . . Hacking | -11 -10 -10 -8 --------- Run | Yrd Mat Sub Mat Machines Accessed 9 | . 4 1 4 Terminals 6 | . 4 . 2 Fabricators . | . . . . Repair Stations 1 | . . . 1 Recycling Units . | . . . . Scanalyzers 1 | . . . 1 Garrison Access . | . . . . Total Hacks 15 | . 7 2 6 Successful 7 | . 2 2 3 Failed 8 | . 5 . 3 Catastrophic 2 | . . . 2 Database Lockouts . | . . . . Manual 6 | . 4 . 2 Terminals 9 | . 7 . 2 Fabricators . | . . . . Repair Stations 2 | . . . 2 Recycling Units . | . . . . Scanalyzers 2 | . . . 2 Garrison Access . | . . . . Terminal Hacks 4 | . 2 2 . Record 2 | . . 2 . Zone Layout 2 | . 2 . . Fabricator Hacks . | . . . . Repair Station Hacks 2 | . . . 2 Scan Component 1 | . . . 1 Repair 1 | . . . 1 Recycling Unit Hacks . | . . . . Scanalyzer 1 | . . . 1 Retrieve Study 1 | . . . 1 Garrison Access Hacks . | . . . . Unauthorized Hacks . | . . . . Terminals . | . . . . Fabricators . | . . . . Repair Stations . | . . . . Recycling Units . | . . . . Scanalyzers . | . . . . Garrison Access . | . . . . Data Cores Recovered . | . . . . Used . | . . . . Hacking Detections 7 | . 3 . 4 Full Trace Events . | . . . . Feedback Events . | . . . . Feedback Blocked . | . . . . Robot Schematics Acquired . | . . . . Robots Built . | . . . . Authchips . | . . . . Time . | . . . . Total Robot Build Rating . | . . . . Part Schematics Acquired . | . . . . Parts Built . | . . . . Authchips . | . . . . Time . | . . . . Total Part Build Rating . | . . . . Part Studies Acquired 1 | . . . 1 Parts Repaired 1 | . . . 1 Time 13 | . . . 13 Parts Recycled . | . . . . Recycled Matter . | . . . . Retrieved Matter . | . . . . Retrieved Components . | . . . . Parts Scanalyzed . | . . . . Part Schematics Acquired . | . . . . Parts Damaged . | . . . . Bothacking | -11 -10 -10 -8 ------------ Run | Yrd Mat Sub Mat Used RIF Installer . | . . . . Robots Hacked . | . . . . Non-combat . | . . . . Combat . | . . . . Robot Hacks Applied . | . . . . Relay Couplers Released . | . . . . Fabnet Peak Effective % . | . . . . Robots Rewired . | . . . . Allies Hacked . | . . . . Hacks Repelled . | . . . . Allies | -11 -10 -10 -8 -------- Run | Yrd Mat Sub Mat Total Allies . | . . . . Largest Group . | . . . . Highest-Rated Group . | . . . . Highest-Rated Ally . | . . . . Total Orders . | . . . . Ally Attacks . | . . . . Total Damage . | . . . . Kills . | . . . . Allies Corrupted . | . . . . Allies Melted . | . . . . Intel | -11 -10 -10 -8 ------- Run | Yrd Mat Sub Mat Active Infowar (turns) 1762 | . 576 430 756 Sensors 700 | . . . 700 Terrain 1682 | . 576 430 676 ECM 43 | . . . 43 Robot Analysis Total . | . . . . Derelict Logs Recovered . | . . . . Drone Launches . | . . . . Drone Recoveries . | . . . . Exploration | -11 -10 -10 -8 ------------- Run | Yrd Mat Sub Mat Turns Passed 1969 | 60 599 430 880 Spaces Moved 1012 | 49 347 322 294 Core 75 | 8 . . 67 Treads . | . . . . Legs 937 | 41 347 322 227 Wheels . | . . . . Hover . | . . . . Flight . | . . . . Fastest Speed 50 | 50 120 120 50 Average Speed 130 | 109 120 120 156 Slowest Speed 330 | 120 120 120 330 Overloaded Moves . | . . . . Propulsion Burnouts . | . . . . Robots Hopped . | . . . . Potential Cave-ins . | . . . . Cave-ins Triggered . | . . . . Exploration Rate (%) 29 | 3 51 31 31 Regions Visited 3 Branch Regions 1 Pre-discovered Areas 1 | . . 1 . Known Exits Taken . | . . . . Unknown Exits Taken 3 | 1 1 1 . Scrap Searched . | . . . . Spaces Dug . | . . . . Terrain Destroyed 22 | . . . 22 Melee . | . . . . Projectile . | . . . . AOE 22 | . . . 22 Terrain Rammed . | . . . . Walls Destroyed . | . . . . Machines Disabled . | . . . . Actions | -11 -10 -10 -8 --------- Run | Yrd Mat Sub Mat Total 1486 | 53 461 344 628 Wait 279 | . 47 8 224 Move 1009 | 48 346 321 294 Hop . | . . . . Pick Up 8 | . 5 . 3 Fast Attach 20 | 5 3 1 11 Attach 5 | . . 1 4 Detach . | . . . . Swap 15 | . 8 . 7 Drop 16 | . 9 1 6 Fire 93 | . 38 12 43 Melee . | . . . . Ram 36 | . . . 36 Kick 5 | . 5 . . Crush . | . . . . Escape Stasis . | . . . . Rewire . | . . . . Trap . | . . . . Miscellaneous . | . . . . Route ------- -11/Scrapyard -10/Materials (discovered 2 exits: [*Mat] / *Sub) -10/Subcaves -8/Materials History --------- Turn | Location | Event 8 | -11/Scrapyard | Discovered new exit (range 16) 61 | -11/Scrapyard | Entered Materials 301 | -10/Materials | Build established: Mutant 634 | -10/Materials | Discovered new exit (range 9) 642 | -10/Materials | Discovered new exit (range 9) 660 | -10/Materials | Entered Subcaves 661 | -10/Subcaves | Approached by a straggling Scientist 723 | -10/Subcaves | Visited Clippyterm 726 | -10/Subcaves | Learned location of Deep Caves (-7) 853 | -10/Subcaves | A swath of the cavern ceiling suddenly collapsed 883 | -10/Subcaves | Core integrity fell below 50% 1082 | -10/Subcaves | Discovered new exit (range 7) 1090 | -10/Subcaves | Entered Materials 1090 | -8/Materials | Evolved 4 slots: Propulsion x1, Utility x2, Weapon x1 1228 | -8/Materials | Repaired Aluminum Leg 1382 | -8/Materials | Build established: Skirmisher 1771 | -8/Materials | Garrison activated, responded to threat 1909 | -8/Materials | Lost 13 parts (2p3n3u5w) 1925 | -8/Materials | Core integrity fell below 50% 1951 | -8/Materials | Core integrity fell below 20% 1970 | -8/Materials | Destroyed by G-47 Trooper with Particle Gun Last Messages --------------- Destabilizing: Short circuit. Critical hit (Burn: +37). Slammed into G-47 Trooper. Deuterium Engine destroyed. Slammed into G-47 Trooper. ECM Suite broken. Destabilizing: Short circuit. Broken Terrain Scanner destroyed. Slammed into G-47 Trooper. G-47 Trooper destroyed. Broken ECM Suite destroyed. System corrupted by crushing effect (+2). Acquired 60 matter. Acquired Lgt. Nuclear Core. Slammed into G-47 Trooper. System Shield destroyed. System corrupted by crushing effect (+5). Slammed into G-47 Trooper. Lgt. Nuclear Core destroyed. Slammed into G-47 Trooper. Map ----- +----------------------------------------------------+ | ????????????????????????????????? | | ????????????????????????????????? | | ????????????????????????????????? | | ????????????????????????????????? | | ????????????????????????????????? | | ????????????????????????????????? | | ????????????????????????????????? | | ???????? ???????????????????????? | | ???????? ???????????????????????? | | ???????? ???????????????????????? | | ???????# ???????????????????????? | | ??????? ???????????????????????? | | ??????? ???????????????????????? | | ??????? ???????????????????????? | | ??????? #??#???????????????????? | | ??????? #??########+####???????? | | ??????? #??# #???????? | | ??#???## #??# """ """ #???????? | | #??#???# #??# """"""""" #???????? | | ######## #??# """"" " #???????? | | # # #??# #???????? | | # # #### #???????? | | # + + #???????? | | #!= #+########+###########???? | | # # #?# ## #???? | | #= #@ #?# ## #???? | | ########g ### ## #???? | | ????#??# """ ## + #???? | | ???????# """ ## # #???? | | ??#????# """ ## !! #???? | | ??????########## !! #???? | | ??????# !! #???# | | ??????# """ #???? | | ???????? """ # ######## | | ??????# """ !% | | ??????# + | | ??????# """ # | | ??????# "G # # ! #### | | ??????# """ # *%!#??# | | ??????? ?# !=#??# | | ???????#######?# # ! =%##?# | | ??????????????# #! !*#??# | | ????????????? #!!* #?## | | ???????????? T #!! ##?# | | ??????????? #!! #??# | | ??????????#+### # #?## | | ???????????? ?####### #?## | | ???????????????????########## | | ???????????????????# # | | ???????????????????#= """ # | +----------------------------------------------------+ Best States ------------- Heat Dissipation 35 Energy Generation 14 Energy Capacity 275 Matter Stores 300 Matter Capacity 300 Sight Range 16 Robot Scan Range 15 Terrain Scan Range 14 Terrain Scan Density 10 ECM Strength 1 Armor Coverage 225 Weapon Shielding 33 Evasion (%) 55 Defensive Hacking 10 Item Schematics ----------------- None Robot Schematics ------------------ None Fabricated ------------ Nothing Repaired ---------- Aluminum Leg | 24% | -8/Materials Studied --------- Flak Cannon | -8/Materials | Hacked Alien Tech Used ----------------- None Achievements -------------- Hey, That's Mine! More Dakka Please Challenges ------------ None Game ------ Seed MappingPointInsulator Manual? 0 Play Time 00:28:05 Cumulative 8.8 hours Start 2025.11.19 @ 16:02:27 End 2025.11.19 @ 16:30:44 Sessions 1 Manual Loads 0 Difficulty Rogue Special Mode None Game No. 12 Rogue 12 Adventurer 0 Explorer 0 Win Type - Total 0 Types 0/0/0/0/0/0/0/0/0/0 Lore% 3 Gallery% 11 Achievement% 10 Wizard Run 0 Options --------- Layout 1 ASCII 0 Keyboard 0 Movement Mouse Keybinds 0 Fullscreen 1 Font 32/SmallcapsGlow Map View 50x35 Zoom Use 2% Tactical HUD 0 Map Filters NONE Filters NONE Steam 1 RUN: e016da12-ff03-4445-a152-c0b32c85d535